[Event "Titled Tuesday Blitz August 22 Early 2023"]
[White "cthake"]
[Black "Tikhonov, Viacheslav"]
[BlackFideId "44196407"]
[WhiteElo "1830"]
[BlackElo "2516"]
[Result "0-1"]
[Round "1"]
[TimeControl "180+1"]
[Date "2023.08.22"]
[WhiteClock "0:00:00"]
[BlackClock "0:00:41"]
[Board "253"]

1. c4 {[%clk 0:02:58]}  e5 {[%clk 0:02:29]} 2. Nc3 {[%clk 0:02:58]}  Bb4 {[%clk 0:02:23]} 3. d3 {[%clk 0:02:50]}  Nf6 {[%clk 0:02:20]} 4. Bg5 {[%clk 0:02:48]}  c6 {[%clk 0:02:17]} 5. a3 {[%clk 0:02:48]}  Bxc3+ {[%clk 0:02:14]} 6. bxc3 {[%clk 0:02:48]}  h6 {[%clk 0:02:13]} 7. Bh4 {[%clk 0:02:46]}  d6 {[%clk 0:02:11]} 8. e4 {[%clk 0:02:46]}  Be6 {[%clk 0:02:09]} 9. Rb1 {[%clk 0:02:45]}  Qa5 {[%clk 0:02:03]} 10. Qb3 {[%clk 0:02:41]}  b5 {[%clk 0:01:47]} 11. Bxf6 {[%clk 0:02:31]}  gxf6 {[%clk 0:01:46]} 12. Qb4 {[%clk 0:02:30]}  Qxb4 {[%clk 0:01:43]} 13. cxb4 {[%clk 0:02:26]}  a6 {[%clk 0:01:38]} 14. Nf3 {[%clk 0:02:14]}  Nd7 {[%clk 0:01:38]} 15. Be2 {[%clk 0:02:12]}  Nb6 {[%clk 0:01:38]} 16. Nd2 {[%clk 0:02:11]}  Na4 {[%clk 0:01:38]} 17. O-O {[%clk 0:01:53]}  f5 {[%clk 0:01:36]} 18. exf5 {[%clk 0:01:37]}  Bxf5 {[%clk 0:01:37]} 19. Rb3 {[%clk 0:01:16]}  Kd7 {[%clk 0:01:26]} 20. Rd1 {[%clk 0:01:09]}  Be6 {[%clk 0:01:26]} 21. Ne4 {[%clk 0:01:00]}  f5 {[%clk 0:01:24]} 22. Nc3 {[%clk 0:00:52]}  Nb6 {[%clk 0:01:24]} 23. Rbb1 {[%clk 0:00:30]}  bxc4 {[%clk 0:01:23]} 24. dxc4 {[%clk 0:00:24]}  Bxc4 {[%clk 0:01:23]} 25. Bxc4 {[%clk 0:00:23]}  Nxc4 {[%clk 0:01:24]} 26. Kf1 {[%clk 0:00:19]}  Nxa3 {[%clk 0:01:24]} 27. Rb3 {[%clk 0:00:19]}  Nc4 {[%clk 0:01:24]} 28. Ke2 {[%clk 0:00:18]}  d5 {[%clk 0:01:24]} 29. Na4 {[%clk 0:00:16]}  Kc7 {[%clk 0:01:22]} 30. Nc5 {[%clk 0:00:16]}  a5 {[%clk 0:00:53]} 31. bxa5 {[%clk 0:00:13]}  Nxa5 {[%clk 0:00:51]} 32. Ra3 {[%clk 0:00:11]}  Nc4 {[%clk 0:00:50]} 33. Rc3 {[%clk 0:00:09]}  Ra2+ {[%clk 0:00:50]} 34. Kf3 {[%clk 0:00:09]}  e4+ {[%clk 0:00:47]} 35. Kf4 {[%clk 0:00:08]}  Rxf2+ {[%clk 0:00:47]} 36. Kg3 {[%clk 0:00:06]}  e3 {[%clk 0:00:45]} 37. Ne6+ {[%clk 0:00:05]}  Kc8 {[%clk 0:00:41]} 38. Nf4 {[%clk 0:00:04]}  Rg8+ {[%clk 0:00:41]} 39. Kh3 {[%clk 0:00:00]}  Rxf4 {[%clk 0:00:41]} 0-1


[Site "https://www.chess.com"]

[Event "Titled Tuesday Blitz August 22 Early 2023"]
[White "Karamsetty, Jeevan"]
[Black "Skiadopoulos, Nikolaos"]
[WhiteFideId "2025337"]
[BlackFideId "4200772"]
[WhiteElo "2515"]
[BlackElo "1814"]
[Result "1-0"]
[Round "1"]
[TimeControl "180+1"]
[Date "2023.08.22"]
[WhiteClock "0:00:46"]
[BlackClock "0:00:16"]
[Board "254"]

1. e4 {[%clk 0:03:00]}  c5 {[%clk 0:02:59]} 2. Nc3 {[%clk 0:03:00]}  Nc6 {[%clk 0:02:58]} 3. Bb5 {[%clk 0:02:59]}  Na5 {[%clk 0:02:57]} 4. Nf3 {[%clk 0:02:49]}  a6 {[%clk 0:02:57]} 5. Be2 {[%clk 0:02:48]}  b5 {[%clk 0:02:56]} 6. O-O {[%clk 0:02:41]}  e6 {[%clk 0:02:54]} 7. a3 {[%clk 0:02:37]}  Nc6 {[%clk 0:02:49]} 8. d4 {[%clk 0:02:32]}  cxd4 {[%clk 0:02:44]} 9. Nxd4 {[%clk 0:02:33]}  Nxd4 {[%clk 0:02:42]} 10. Qxd4 {[%clk 0:02:34]}  Ne7 {[%clk 0:02:42]} 11. Bg5 {[%clk 0:02:18]}  Qc7 {[%clk 0:02:38]} 12. Rad1 {[%clk 0:02:08]}  Nc6 {[%clk 0:02:35]} 13. Qe3 {[%clk 0:02:08]}  Be7 {[%clk 0:02:16]} 14. Bf4 {[%clk 0:02:03]}  d6 {[%clk 0:02:05]} 15. Qg3 {[%clk 0:01:57]}  O-O {[%clk 0:01:52]} 16. Bxd6 {[%clk 0:01:42]}  Bxd6 {[%clk 0:01:51]} 17. Rxd6 {[%clk 0:01:43]}  b4 {[%clk 0:01:39]} 18. axb4 {[%clk 0:01:37]}  Nxb4 {[%clk 0:01:38]} 19. e5 {[%clk 0:01:35]}  Bb7 {[%clk 0:01:29]} 20. Rd4 {[%clk 0:01:19]}  a5 {[%clk 0:01:18]} 21. Rh4 {[%clk 0:01:10]}  Rfd8 {[%clk 0:01:01]} 22. Qg5 {[%clk 0:00:53]}  Qc5 {[%clk 0:00:44]} 23. Rg4 {[%clk 0:00:52]}  Qf8 {[%clk 0:00:43]} 24. h4 {[%clk 0:00:49]}  Rac8 {[%clk 0:00:32]} 25. h5 {[%clk 0:00:47]}  Kh8 {[%clk 0:00:29]} 26. h6 {[%clk 0:00:46]}  gxh6 {[%clk 0:00:16]} 27. Qf6+ {[%clk 0:00:46]} 1-0


[Site "https://www.chess.com"]

[Event "Titled Tuesday Blitz August 22 Early 2023"]
[White "Vachier-Lagrave, Maxime"]
[Black "Amartuvshin, Ganzorig"]
[WhiteFideId "623539"]
[BlackFideId "4902548"]
[WhiteElo "3137"]
[BlackElo "2626"]
[Result "1-0"]
[Round "2"]
[TimeControl "180+1"]
[Date "2023.08.22"]
[WhiteClock "0:01:34"]
[BlackClock "0:00:12"]
[Board "2"]

1. Nf3 {[%clk 0:02:56]}  Nf6 {[%clk 0:02:58]} 2. c4 {[%clk 0:02:56]}  e6 {[%clk 0:02:57]} 3. g3 {[%clk 0:02:53]}  d5 {[%clk 0:02:57]} 4. Bg2 {[%clk 0:02:53]}  Be7 {[%clk 0:02:42]} 5. O-O {[%clk 0:02:53]}  O-O {[%clk 0:02:41]} 6. d4 {[%clk 0:02:52]}  dxc4 {[%clk 0:02:38]} 7. Qc2 {[%clk 0:02:52]}  c6 {[%clk 0:02:32]} 8. Qxc4 {[%clk 0:02:51]}  b5 {[%clk 0:02:32]} 9. Qb3 {[%clk 0:02:50]}  Bb7 {[%clk 0:02:31]} 10. Rd1 {[%clk 0:02:49]}  a6 {[%clk 0:02:25]} 11. Nc3 {[%clk 0:02:47]}  Nbd7 {[%clk 0:02:17]} 12. Ne5 {[%clk 0:02:44]}  Qc7 {[%clk 0:02:14]} 13. Bf4 {[%clk 0:02:18]}  Bd6 {[%clk 0:02:12]} 14. Nxd7 {[%clk 0:02:17]}  Nxd7 {[%clk 0:02:06]} 15. Bxd6 {[%clk 0:02:17]}  Qxd6 {[%clk 0:02:06]} 16. Ne4 {[%clk 0:02:17]}  Qe7 {[%clk 0:02:04]} 17. Rac1 {[%clk 0:02:17]}  Rfd8 {[%clk 0:02:01]} 18. Nc5 {[%clk 0:02:15]}  Nxc5 {[%clk 0:01:58]} 19. Rxc5 {[%clk 0:02:16]}  Rd6 {[%clk 0:01:55]} 20. e3 {[%clk 0:02:15]}  Rad8 {[%clk 0:01:50]} 21. Rdc1 {[%clk 0:02:13]}  Qc7 {[%clk 0:01:44]} 22. h4 {[%clk 0:02:12]}  h6 {[%clk 0:01:43]} 23. Qc2 {[%clk 0:02:11]}  Rc8 {[%clk 0:01:42]} 24. Qe4 {[%clk 0:02:10]}  Qd7 {[%clk 0:01:41]} 25. Qf4 {[%clk 0:02:10]}  Qe7 {[%clk 0:01:38]} 26. g4 {[%clk 0:02:09]}  f6 {[%clk 0:01:16]} 27. g5 {[%clk 0:02:04]}  fxg5 {[%clk 0:01:12]} 28. hxg5 {[%clk 0:02:05]}  h5 {[%clk 0:00:59]} 29. g6 {[%clk 0:01:52]}  Rf8 {[%clk 0:00:53]} 30. Qh2 {[%clk 0:01:45]}  h4 {[%clk 0:00:51]} 31. Rh5 {[%clk 0:01:44]}  Qf6 {[%clk 0:00:37]} 32. Rxh4 {[%clk 0:01:40]}  Qxg6 {[%clk 0:00:32]} 33. Rh8+ {[%clk 0:01:36]}  Kf7 {[%clk 0:00:21]} 34. Rxf8+ {[%clk 0:01:37]}  Ke7 {[%clk 0:00:12]} 35. Rb8 {[%clk 0:01:34]} 1-0


[Site "https://www.chess.com"]

[Event "Titled Tuesday Blitz August 22 Early 2023"]
[White "Iskusnyh, Sergei"]
[Black "Firouzja, Alireza"]
[WhiteFideId "4120027"]
[BlackFideId "12573981"]
[WhiteElo "2624"]
[BlackElo "3106"]
[Result "0-1"]
[Round "2"]
[TimeControl "180+1"]
[Date "2023.08.22"]
[WhiteClock "0:00:04"]
[BlackClock "0:02:03"]
[Board "5"]

1. d4 {[%clk 0:03:00]}  Nf6 {[%clk 0:03:00]} 2. c4 {[%clk 0:03:00]}  e6 {[%clk 0:03:00]} 3. g3 {[%clk 0:03:00]}  Bb4+ {[%clk 0:03:00]} 4. Bd2 {[%clk 0:02:59]}  c5 {[%clk 0:03:00]} 5. Bg2 {[%clk 0:02:46]}  O-O {[%clk 0:03:00]} 6. Nf3 {[%clk 0:02:44]}  b6 {[%clk 0:02:58]} 7. O-O {[%clk 0:02:42]}  Bb7 {[%clk 0:02:58]} 8. Bxb4 {[%clk 0:02:26]}  cxb4 {[%clk 0:02:58]} 9. a3 {[%clk 0:02:22]}  Qe7 {[%clk 0:02:55]} 10. Qd2 {[%clk 0:02:03]}  Na6 {[%clk 0:02:53]} 11. Ne1 {[%clk 0:01:37]}  Bxg2 {[%clk 0:02:51]} 12. Kxg2 {[%clk 0:01:38]}  d5 {[%clk 0:02:51]} 13. Qd3 {[%clk 0:01:29]}  dxc4 {[%clk 0:02:47]} 14. Qxc4 {[%clk 0:01:28]}  Qb7+ {[%clk 0:02:48]} 15. Nf3 {[%clk 0:01:26]}  Rac8 {[%clk 0:02:47]} 16. Qb3 {[%clk 0:01:16]}  Nd5 {[%clk 0:02:16]} 17. Nbd2 {[%clk 0:01:03]}  bxa3 {[%clk 0:02:09]} 18. Qxa3 {[%clk 0:00:50]}  Ndb4 {[%clk 0:02:09]} 19. Qb3 {[%clk 0:00:44]}  Nc2 {[%clk 0:02:08]} 20. Ra4 {[%clk 0:00:36]}  b5 {[%clk 0:02:04]} 21. e3 {[%clk 0:00:32]}  Rc7 {[%clk 0:02:03]} 22. Ra5 {[%clk 0:00:30]}  Nab4 {[%clk 0:02:03]} 23. Kg1 {[%clk 0:00:19]}  Rfc8 {[%clk 0:02:01]} 24. Ne5 {[%clk 0:00:16]}  a6 {[%clk 0:02:02]} 25. Nd3 {[%clk 0:00:14]}  Nxd3 {[%clk 0:02:02]} 26. Qxd3 {[%clk 0:00:14]}  Nb4 {[%clk 0:02:03]} 27. Nb3 {[%clk 0:00:04]}  Nxd3 {[%clk 0:02:03]} 0-1


[Site "https://www.chess.com"]

[Event "Titled Tuesday Blitz August 22 Early 2023"]
[White "Erigaisi Arjun"]
[Black "Bodnaruk, Anastasia"]
[WhiteFideId "35009192"]
[BlackFideId "4181751"]
[WhiteElo "3056"]
[BlackElo "2621"]
[Result "1-0"]
[Round "2"]
[TimeControl "180+1"]
[Date "2023.08.22"]
[WhiteClock "0:00:30"]
[BlackClock "0:00:00"]
[Board "6"]

1. b3 {[%clk 0:03:00]}  e5 {[%clk 0:02:59]} 2. Bb2 {[%clk 0:03:00]}  d6 {[%clk 0:02:59]} 3. c4 {[%clk 0:03:01]}  Nc6 {[%clk 0:02:58]} 4. e3 {[%clk 0:03:00]}  g6 {[%clk 0:02:58]} 5. a3 {[%clk 0:02:59]}  Bg7 {[%clk 0:02:52]} 6. Nf3 {[%clk 0:02:59]}  Nf6 {[%clk 0:02:49]} 7. d4 {[%clk 0:02:56]}  e4 {[%clk 0:02:46]} 8. Nfd2 {[%clk 0:02:55]}  O-O {[%clk 0:02:46]} 9. Nc3 {[%clk 0:02:55]}  Re8 {[%clk 0:02:46]} 10. Be2 {[%clk 0:02:55]}  h5 {[%clk 0:02:44]} 11. h3 {[%clk 0:02:53]}  h4 {[%clk 0:02:31]} 12. b4 {[%clk 0:02:52]}  Bf5 {[%clk 0:02:29]} 13. Nb3 {[%clk 0:02:47]}  g5 {[%clk 0:02:12]} 14. g4 {[%clk 0:02:41]}  hxg3 {[%clk 0:02:06]} 15. fxg3 {[%clk 0:02:42]}  Bg6 {[%clk 0:01:54]} 16. Qd2 {[%clk 0:02:36]}  d5 {[%clk 0:01:43]} 17. O-O-O {[%clk 0:02:31]}  a5 {[%clk 0:01:35]} 18. b5 {[%clk 0:02:30]}  a4 {[%clk 0:01:34]} 19. bxc6 {[%clk 0:02:22]}  axb3 {[%clk 0:01:34]} 20. cxb7 {[%clk 0:02:22]}  Rb8 {[%clk 0:01:34]} 21. h4 {[%clk 0:02:18]}  g4 {[%clk 0:01:26]} 22. h5 {[%clk 0:02:14]}  Bh7 {[%clk 0:01:26]} 23. h6 {[%clk 0:02:12]}  Bh8 {[%clk 0:01:26]} 24. Rdf1 {[%clk 0:02:07]}  Rxb7 {[%clk 0:01:24]} 25. cxd5 {[%clk 0:01:55]}  Nxd5 {[%clk 0:01:22]} 26. Bxg4 {[%clk 0:01:54]}  Nxc3 {[%clk 0:01:06]} 27. Qxc3 {[%clk 0:01:49]}  c5 {[%clk 0:01:03]} 28. Kb1 {[%clk 0:01:45]}  cxd4 {[%clk 0:00:59]} 29. exd4 {[%clk 0:01:46]}  e3+ {[%clk 0:00:57]} 30. Bf5 {[%clk 0:01:46]}  Bxf5+ {[%clk 0:00:40]} 31. Rxf5 {[%clk 0:01:47]}  e2 {[%clk 0:00:39]} 32. h7+ {[%clk 0:01:43]}  Kf8 {[%clk 0:00:39]} 33. a4 {[%clk 0:01:35]}  Qd6 {[%clk 0:00:31]} 34. Bc1 {[%clk 0:01:08]}  Rc7 {[%clk 0:00:17]} 35. Qd2 {[%clk 0:00:47]}  Re4 {[%clk 0:00:09]} 36. Re5 {[%clk 0:00:34]}  Rxe5 {[%clk 0:00:05]} 37. dxe5 {[%clk 0:00:35]}  Qg6+ {[%clk 0:00:05]} 38. Ka1 {[%clk 0:00:33]}  Bxe5+ {[%clk 0:00:05]} 39. Bb2 {[%clk 0:00:33]}  Bxb2+ {[%clk 0:00:02]} 40. Qxb2 {[%clk 0:00:34]}  Rc2 {[%clk 0:00:02]} 41. h8=Q+ {[%clk 0:00:34]}  Ke7 {[%clk 0:00:02]} 42. Qhe5+ {[%clk 0:00:30]}  Kd7 {[%clk 0:00:00]} 43. Qbd4+ {[%clk 0:00:30]} 1-0


[Site "https://www.chess.com"]

[Event "Titled Tuesday Blitz August 22 Early 2023"]
[White "Maltsevskaya, Aleksandra"]
[Black "Bortnyk, Olexandr"]
[WhiteFideId "24174041"]
[BlackFideId "14120828"]
[WhiteElo "2620"]
[BlackElo "3053"]
[Result "0-1"]
[Round "2"]
[TimeControl "180+1"]
[Date "2023.08.22"]
[WhiteClock "0:00:58"]
[BlackClock "0:02:19"]
[Board "7"]

1. e4 {[%clk 0:02:59]}  Nf6 {[%clk 0:02:59]} 2. e5 {[%clk 0:02:58]}  Nd5 {[%clk 0:02:58]} 3. c4 {[%clk 0:02:58]}  Nb6 {[%clk 0:02:58]} 4. d4 {[%clk 0:02:59]}  d6 {[%clk 0:02:59]} 5. f4 {[%clk 0:02:59]}  dxe5 {[%clk 0:02:59]} 6. fxe5 {[%clk 0:02:59]}  Bf5 {[%clk 0:03:00]} 7. Nf3 {[%clk 0:02:55]}  e6 {[%clk 0:02:59]} 8. Be3 {[%clk 0:02:53]}  Bb4+ {[%clk 0:02:55]} 9. Nc3 {[%clk 0:02:52]}  c5 {[%clk 0:02:53]} 10. dxc5 {[%clk 0:02:10]}  Qxd1+ {[%clk 0:02:51]} 11. Rxd1 {[%clk 0:02:10]}  Na4 {[%clk 0:02:51]} 12. Kf2 {[%clk 0:01:33]}  Nxb2 {[%clk 0:02:35]} 13. Rc1 {[%clk 0:01:31]}  Bxc3 {[%clk 0:02:36]} 14. g4 {[%clk 0:01:17]}  Bxg4 {[%clk 0:02:30]} 15. Bg2 {[%clk 0:01:11]}  Nd3+ {[%clk 0:02:22]} 16. Kg3 {[%clk 0:01:12]}  Bxf3 {[%clk 0:02:23]} 17. Bxf3 {[%clk 0:01:12]}  Bxe5+ {[%clk 0:02:23]} 18. Kg2 {[%clk 0:01:06]}  Nc6 {[%clk 0:02:21]} 19. Rb1 {[%clk 0:00:58]}  O-O-O {[%clk 0:02:19]} 0-1


[Site "https://www.chess.com"]

[Event "Titled Tuesday Blitz August 22 Early 2023"]
[White "Grischuk, Alexander"]
[Black "CrazyAdvenTures"]
[WhiteFideId "4126025"]
[WhiteElo "3038"]
[BlackElo "2617"]
[Result "1-0"]
[Round "2"]
[TimeControl "180+1"]
[Date "2023.08.22"]
[WhiteClock "0:01:38"]
[BlackClock "0:00:07"]
[Board "9"]

1. Nf3 {[%clk 0:03:00]}  d6 {[%clk 0:02:59]} 2. d4 {[%clk 0:02:59]}  Nf6 {[%clk 0:02:59]} 3. g3 {[%clk 0:02:57]}  g6 {[%clk 0:02:56]} 4. Bg2 {[%clk 0:02:57]}  Bg7 {[%clk 0:02:57]} 5. c4 {[%clk 0:02:57]}  O-O {[%clk 0:02:56]} 6. Nc3 {[%clk 0:02:58]}  Nc6 {[%clk 0:02:53]} 7. Bf4 {[%clk 0:02:49]}  Nh5 {[%clk 0:02:39]} 8. Be3 {[%clk 0:02:46]}  e5 {[%clk 0:02:38]} 9. dxe5 {[%clk 0:02:44]}  Nxe5 {[%clk 0:02:38]} 10. Nxe5 {[%clk 0:02:41]}  Bxe5 {[%clk 0:02:39]} 11. Qd2 {[%clk 0:02:39]}  Be6 {[%clk 0:02:09]} 12. b3 {[%clk 0:02:35]}  c6 {[%clk 0:02:09]} 13. O-O {[%clk 0:02:33]}  Qe7 {[%clk 0:02:00]} 14. Rac1 {[%clk 0:02:24]}  f5 {[%clk 0:01:59]} 15. f4 {[%clk 0:02:19]}  Bg7 {[%clk 0:01:56]} 16. Rfd1 {[%clk 0:02:19]}  Rfd8 {[%clk 0:01:43]} 17. Bd4 {[%clk 0:02:15]}  Nf6 {[%clk 0:01:38]} 18. Bf3 {[%clk 0:02:12]}  d5 {[%clk 0:00:52]} 19. Bxf6 {[%clk 0:02:05]}  Bxf6 {[%clk 0:00:53]} 20. cxd5 {[%clk 0:02:05]}  Bxc3 {[%clk 0:00:49]} 21. Rxc3 {[%clk 0:01:58]}  Bxd5 {[%clk 0:00:48]} 22. Rd3 {[%clk 0:01:58]}  Qc5+ {[%clk 0:00:42]} 23. Kf1 {[%clk 0:01:57]}  Qe7 {[%clk 0:00:19]} 24. Bxd5+ {[%clk 0:01:54]}  cxd5 {[%clk 0:00:20]} 25. Rxd5 {[%clk 0:01:54]}  Re8 {[%clk 0:00:17]} 26. Rd7 {[%clk 0:01:51]}  Qe4 {[%clk 0:00:17]} 27. Qd5+ {[%clk 0:01:50]}  Qxd5 {[%clk 0:00:16]} 28. R1xd5 {[%clk 0:01:51]}  Rac8 {[%clk 0:00:16]} 29. Rd2 {[%clk 0:01:43]}  Rc1+ {[%clk 0:00:16]} 30. Kf2 {[%clk 0:01:43]}  Rh1 {[%clk 0:00:17]} 31. h4 {[%clk 0:01:38]}  Rh2+ {[%clk 0:00:07]} 32. Kf3 {[%clk 0:01:38]} 1-0


[Site "https://www.chess.com"]

[Event "Titled Tuesday Blitz August 22 Early 2023"]
[White "Kvaloy, Aksel Bu"]
[Black "Martinez Alcantara, Jose Eduardo"]
[WhiteFideId "1528815"]
[BlackFideId "3805662"]
[WhiteElo "2613"]
[BlackElo "3033"]
[Result "0-1"]
[Round "2"]
[TimeControl "180+1"]
[Date "2023.08.22"]
[WhiteClock "0:00:56"]
[BlackClock "0:00:50"]
[Board "10"]

1. e4 {[%clk 0:02:54]}  c5 {[%clk 0:02:59]} 2. Nf3 {[%clk 0:02:50]}  d6 {[%clk 0:03:00]} 3. d4 {[%clk 0:02:49]}  cxd4 {[%clk 0:03:01]} 4. Nxd4 {[%clk 0:02:48]}  Nf6 {[%clk 0:03:02]} 5. Nc3 {[%clk 0:02:46]}  Nc6 {[%clk 0:03:02]} 6. Bg5 {[%clk 0:02:46]}  e6 {[%clk 0:03:03]} 7. Qd3 {[%clk 0:02:46]}  a6 {[%clk 0:03:01]} 8. Nxc6 {[%clk 0:02:46]}  bxc6 {[%clk 0:03:01]} 9. O-O-O {[%clk 0:02:47]}  Qa5 {[%clk 0:02:39]} 10. f4 {[%clk 0:02:43]}  h6 {[%clk 0:02:35]} 11. Bh4 {[%clk 0:02:40]}  Be7 {[%clk 0:02:36]} 12. Be2 {[%clk 0:02:36]}  Rb8 {[%clk 0:02:33]} 13. e5 {[%clk 0:02:17]}  dxe5 {[%clk 0:02:27]} 14. fxe5 {[%clk 0:02:18]}  Nd5 {[%clk 0:02:28]} 15. Bxe7 {[%clk 0:02:16]}  Kxe7 {[%clk 0:02:29]} 16. Ne4 {[%clk 0:02:08]}  Qxa2 {[%clk 0:02:20]} 17. b3 {[%clk 0:02:03]}  Qa1+ {[%clk 0:02:16]} 18. Kd2 {[%clk 0:02:03]}  Qxe5 {[%clk 0:02:17]} 19. Rhf1 {[%clk 0:01:55]}  f5 {[%clk 0:02:04]} 20. Nc5 {[%clk 0:01:46]}  Nf4 {[%clk 0:01:58]} 21. Qe3 {[%clk 0:01:28]}  Rd8+ {[%clk 0:01:55]} 22. Bd3 {[%clk 0:01:28]}  Qxe3+ {[%clk 0:01:38]} 23. Kxe3 {[%clk 0:01:29]}  Nxg2+ {[%clk 0:01:39]} 24. Kf3 {[%clk 0:01:26]}  Nh4+ {[%clk 0:01:37]} 25. Kg3 {[%clk 0:01:26]}  g5 {[%clk 0:01:33]} 26. Bc4 {[%clk 0:01:25]}  f4+ {[%clk 0:01:22]} 27. Kf2 {[%clk 0:01:24]}  Rxd1 {[%clk 0:01:22]} 28. Rxd1 {[%clk 0:01:24]}  Nf5 {[%clk 0:01:23]} 29. Ra1 {[%clk 0:01:20]}  Ne3 {[%clk 0:01:19]} 30. Bxa6 {[%clk 0:01:19]}  Nxc2 {[%clk 0:01:14]} 31. Rc1 {[%clk 0:01:18]}  Nd4 {[%clk 0:01:02]} 32. Bxc8 {[%clk 0:01:11]}  Rxc8 {[%clk 0:01:03]} 33. Rc4 {[%clk 0:01:11]}  e5 {[%clk 0:00:52]} 34. Ne4 {[%clk 0:00:56]}  Ra8 {[%clk 0:00:50]} 0-1


[Site "https://www.chess.com"]

[Event "Titled Tuesday Blitz August 22 Early 2023"]
[White "Bluebaum, Matthias"]
[Black "Saif, Malek"]
[WhiteFideId "24651516"]
[BlackFideId "8104220"]
[WhiteElo "3023"]
[BlackElo "2611"]
[Result "1-0"]
[Round "2"]
[TimeControl "180+1"]
[Date "2023.08.22"]
[WhiteClock "0:00:45"]
[BlackClock "0:00:03"]
[Board "11"]

1. d4 {[%clk 0:03:00]}  d6 {[%clk 0:02:59]} 2. Nf3 {[%clk 0:03:00]}  Nf6 {[%clk 0:02:59]} 3. c4 {[%clk 0:03:01]}  g6 {[%clk 0:02:59]} 4. Nc3 {[%clk 0:03:02]}  Nbd7 {[%clk 0:03:00]} 5. e4 {[%clk 0:03:02]}  e5 {[%clk 0:03:00]} 6. Be2 {[%clk 0:03:03]}  Bg7 {[%clk 0:03:00]} 7. Be3 {[%clk 0:03:04]}  c6 {[%clk 0:03:00]} 8. O-O {[%clk 0:03:04]}  Qc7 {[%clk 0:03:00]} 9. Qc2 {[%clk 0:03:03]}  Ng4 {[%clk 0:03:00]} 10. Rad1 {[%clk 0:02:54]}  Nxe3 {[%clk 0:02:59]} 11. fxe3 {[%clk 0:02:55]}  O-O {[%clk 0:02:58]} 12. Kh1 {[%clk 0:02:55]}  Nf6 {[%clk 0:02:52]} 13. c5 {[%clk 0:02:45]}  dxc5 {[%clk 0:02:46]} 14. Nxe5 {[%clk 0:02:45]}  Bh6 {[%clk 0:02:29]} 15. Rxf6 {[%clk 0:02:42]}  Bxe3 {[%clk 0:02:28]} 16. Bc4 {[%clk 0:02:20]}  cxd4 {[%clk 0:02:12]} 17. Rxf7 {[%clk 0:02:15]}  Rxf7 {[%clk 0:02:11]} 18. Nxf7 {[%clk 0:02:15]}  b5 {[%clk 0:02:00]} 19. Bb3 {[%clk 0:02:06]}  Kg7 {[%clk 0:01:37]} 20. Nxb5 {[%clk 0:01:58]}  Qf4 {[%clk 0:01:09]} 21. Qxc6 {[%clk 0:01:37]}  Rb8 {[%clk 0:01:10]} 22. Qe8 {[%clk 0:01:34]}  Bg4 {[%clk 0:01:05]} 23. Nd8 {[%clk 0:00:57]}  Rxd8 {[%clk 0:00:48]} 24. Qe7+ {[%clk 0:00:57]}  Kh6 {[%clk 0:00:45]} 25. Ra1 {[%clk 0:00:56]}  Rf8 {[%clk 0:00:41]} 26. Qh4+ {[%clk 0:00:48]}  Kg7 {[%clk 0:00:39]} 27. h3 {[%clk 0:00:49]}  Bd7 {[%clk 0:00:15]} 28. Qe7+ {[%clk 0:00:48]}  Kh6 {[%clk 0:00:08]} 29. Qxd7 {[%clk 0:00:48]}  Qf1+ {[%clk 0:00:08]} 30. Rxf1 {[%clk 0:00:48]}  Rxf1+ {[%clk 0:00:09]} 31. Kh2 {[%clk 0:00:49]}  Bf4+ {[%clk 0:00:09]} 32. g3 {[%clk 0:00:50]}  Rf2+ {[%clk 0:00:10]} 33. Kh1 {[%clk 0:00:47]}  Be3 {[%clk 0:00:09]} 34. Bc4 {[%clk 0:00:42]}  Rc2 {[%clk 0:00:05]} 35. Qf7 {[%clk 0:00:37]}  Rc1+ {[%clk 0:00:05]} 36. Kg2 {[%clk 0:00:38]}  Rc2+ {[%clk 0:00:05]} 37. Kf3 {[%clk 0:00:35]}  Rf2+ {[%clk 0:00:05]} 38. Kg4 {[%clk 0:00:36]}  Rxf7 {[%clk 0:00:05]} 39. Bxf7 {[%clk 0:00:37]}  d3 {[%clk 0:00:05]} 40. Bc4 {[%clk 0:00:37]}  d2 {[%clk 0:00:05]} 41. Be2 {[%clk 0:00:38]}  Kg7 {[%clk 0:00:05]} 42. Nd6 {[%clk 0:00:37]}  Kf6 {[%clk 0:00:05]} 43. Nc4 {[%clk 0:00:38]}  Bh6 {[%clk 0:00:05]} 44. e5+ {[%clk 0:00:38]}  Ke6 {[%clk 0:00:05]} 45. Kf3 {[%clk 0:00:39]}  Kd5 {[%clk 0:00:05]} 46. b3 {[%clk 0:00:39]}  a6 {[%clk 0:00:05]} 47. Bd1 {[%clk 0:00:39]}  Kd4 {[%clk 0:00:06]} 48. e6 {[%clk 0:00:39]}  Bf8 {[%clk 0:00:06]} 49. Nxd2 {[%clk 0:00:40]}  Kd3 {[%clk 0:00:06]} 50. Ne4 {[%clk 0:00:40]}  Be7 {[%clk 0:00:06]} 51. Be2+ {[%clk 0:00:40]}  Kc2 {[%clk 0:00:06]} 52. Bxa6 {[%clk 0:00:41]}  Kb2 {[%clk 0:00:06]} 53. Bc4 {[%clk 0:00:42]}  Kxa2 {[%clk 0:00:06]} 54. Nc3+ {[%clk 0:00:42]}  Ka3 {[%clk 0:00:07]} 55. Nd5 {[%clk 0:00:43]}  Bd6 {[%clk 0:00:07]} 56. e7 {[%clk 0:00:44]}  Bxe7 {[%clk 0:00:03]} 57. Nxe7 {[%clk 0:00:45]} 1-0


[Site "https://www.chess.com"]